{"text_format":"3","workbook":"xlsx","n_sheets":2,"sheets":["BẮT ĐẦU","NGÂN SÁCH HÀNG THÁNG CÁ NHÂN"],"read":"whole","date_system":"1900"}

{"sheet":"BẮT ĐẦU","index":0,"n_rows":7,"n_cols":2,"rows_kept":7}
[null,"GIỚI THIỆU VỀ MẪU NÀY"]
[null,"Sử dụng trang tính ngân sách hàng tháng cá nhân này để theo dõi thu nhập hàng tháng dự kiến và thực tế, cũng như chi phí dự kiến và thực tế của bạn."]
[null,"Nhập chi phí phát sinh ở các thể loại khác nhau vào các bảng tương ứng."]
[null,"Số dư dự kiến, số dư thực tế và chênh lệch được tính toán tự động."]
[null,"Ghi chú: "]
[null,"Hướng dẫn bổ sung được cung cấp ở cột A trong trang tính NGÂN SÁCH HÀNG THÁNG CÁ NHÂN. Văn bản này đã được ẩn một cách chủ ý. Để loại bỏ văn bản, chọn cột A, rồi chọn XÓA. Để bỏ ẩn văn bản, chọn cột A, rồi thay đổi màu phông chữ."]
[null,"Để tìm hiểu thêm về các bảng trong trang tính, hãy nhấn SHIFT, rồi F10 trong một bảng, chọn tùy chọn BẢNG, rồi chọn VĂN BẢN THAY THẾ."]

{"sheet":"NGÂN SÁCH HÀNG THÁNG CÁ NHÂN","index":1,"n_rows":64,"n_cols":10,"rows_kept":64,"merged":[[3,1,5,1],[3,2,3,3],[3,6,4,8],[3,9,4,9],[4,2,4,3],[5,2,5,3],[5,6,6,8],[5,9,6,9],[7,1,9,1],[7,2,7,3],[7,6,8,8],[7,9,8,9],[8,2,8,3],[9,2,9,3],[58,6,59,8],[58,9,59,9],[60,6,61,8],[60,9,61,9],[62,6,63,8],[62,9,63,9]]}
["Tạo Ngân sách hàng tháng cá nhân trong trang tính này. Các hướng dẫn hữu ích về cách sử dụng trang tính này đều nằm ở các ô trong cột này. Mũi tên xuống để bắt đầu."]
["Tiêu đề của trang tính này nằm trong ô bên phải. Hướng dẫn tiếp theo nằm trong ô A4.","NGÂN SÁCH HÀNG THÁNG CÁ NHÂN"]
[]
["Nhãn Thu nhập hàng tháng dự kiến nằm trong ô bên phải. Nhập Thu nhập 1 vào ô E4 và Thu nhập thêm vào E5 để tính toán Tổng thu nhập hàng tháng trong E6. Hướng dẫn tiếp theo nằm trong ô A6.","THU NHẬP HÀNG THÁNG DỰ KIẾN","Thu nhập 1",null,{"v":4300,"d":"4,300.00 ₫"},null,"SỐ DƯ DỰ KIẾN \n(Thu nhập dự kiến trừ chi phí)",null,null,{"$f":"E6-J59","v":{"v":3405,"d":"3,405.00 ₫"}}]
[null,null,"Thu nhập thêm",null,{"v":300,"d":"300.00 ₫"}]
["Số dư dự kiến được tính toán tự động trong ô J4, Số dư thực tế trong J6 và Chênh lệch trong J8. Hướng dẫn tiếp theo nằm trong ô A8.",null,"Tổng thu nhập hàng tháng",null,{"$f":"SUM(E4:E5)","v":{"v":4600,"d":"4,600.00 ₫"}},null,"SỐ DƯ THỰC TẾ \n(Thu nhập thực tế trừ chi phí)",null,null,{"$f":"E10-J61","v":{"v":3064,"d":"3,064.00 ₫"}}]
[]
["Nhãn Thu nhập hàng tháng thực tế nằm trong ô bên phải. Nhập Thu nhập 1 vào ô E8 và Thu nhập thêm vào E9 để tính toán Tổng thu nhập hàng tháng trong E10. Hướng dẫn tiếp theo nằm trong ô A12.","THU NHẬP HÀNG THÁNG THỰC TẾ","Thu nhập 1",null,{"v":4000,"d":"4,000.00 ₫"},null,"CHÊNH LỆCH \n(Thực tế trừ dự kiến)",null,null,{"$f":"J6-J4","v":{"v":-341,"d":"-341.00 ₫"}}]
[null,null,"Thu nhập thêm",null,{"v":300,"d":"300.00 ₫"}]
[null,null,"Tổng thu nhập hàng tháng",null,{"$f":"SUM(E8:E9)","v":{"v":4300,"d":"4,300.00 ₫"}}]
[]
["Nhập chi tiết vào bảng Nhà ở bắt đầu ở ô bên phải và vào bảng Giải trí bắt đầu ở ô G12. Hướng dẫn tiếp theo nằm trong ô A25.","NHÀ Ở","Chi phí theo kế hoạch","Chi phí Thực tế","Chênh lệch",null,"GIẢI TRÍ","Chi phí theo kế hoạch","Chi phí Thực tế","Chênh lệch"]
[null,"Tiền thế chấp hoặc tiền thuê",{"v":1000,"d":"1,000.00 ₫"},{"v":1000,"d":"1,000.00 ₫"},{"$f":"Nhà_ở[[#This Row],[Chi phí theo kế hoạch]]-Nhà_ở[[#This Row],[Chi phí Thực tế]]","v":{"v":0,"d":"0.00 ₫"}},null,"Đi chơi tối",null,null,{"$f":"Giải_trí[[#This Row],[Chi phí theo kế hoạch]]-Giải_trí[[#This Row],[Chi phí Thực tế]]","v":{"v":0,"d":"0.00 ₫"}}]
[null,"Điện thoại",{"v":54,"d":"54.00 ₫"},{"v":100,"d":"100.00 ₫"},{"$f":"Nhà_ở[[#This Row],[Chi phí theo kế hoạch]]-Nhà_ở[[#This Row],[Chi phí Thực tế]]","v":{"v":-46,"d":"-46.00 ₫"}},null,"Nền tảng nghe nhạc",null,null,{"$f":"Giải_trí[[#This Row],[Chi phí theo kế hoạch]]-Giải_trí[[#This Row],[Chi phí Thực tế]]","v":{"v":0,"d":"0.00 ₫"}}]
[null,"Điện",{"v":44,"d":"44.00 ₫"},{"v":56,"d":"56.00 ₫"},{"$f":"Nhà_ở[[#This Row],[Chi phí theo kế hoạch]]-Nhà_ở[[#This Row],[Chi phí Thực tế]]","v":{"v":-12,"d":"-12.00 ₫"}},null,"Phim",null,null,{"$f":"Giải_trí[[#This Row],[Chi phí theo kế hoạch]]-Giải_trí[[#This Row],[Chi phí Thực tế]]","v":{"v":0,"d":"0.00 ₫"}}]
[null,"Khí đốt",{"v":22,"d":"22.00 ₫"},{"v":28,"d":"28.00 ₫"},{"$f":"Nhà_ở[[#This Row],[Chi phí theo kế hoạch]]-Nhà_ở[[#This Row],[Chi phí Thực tế]]","v":{"v":-6,"d":"-6.00 ₫"}},null,"Buổi hòa nhạc",null,null,{"$f":"Giải_trí[[#This Row],[Chi phí theo kế hoạch]]-Giải_trí[[#This Row],[Chi phí Thực tế]]","v":{"v":0,"d":"0.00 ₫"}}]
[null,"Nước và nước thải",{"v":8,"d":"8.00 ₫"},{"v":8,"d":"8.00 ₫"},{"$f":"Nhà_ở[[#This Row],[Chi phí theo kế hoạch]]-Nhà_ở[[#This Row],[Chi phí Thực tế]]","v":{"v":0,"d":"0.00 ₫"}},null,"Sự kiện thể thao",null,null,{"$f":"Giải_trí[[#This Row],[Chi phí theo kế hoạch]]-Giải_trí[[#This Row],[Chi phí Thực tế]]","v":{"v":0,"d":"0.00 ₫"}}]
[null,"Cáp",{"v":34,"d":"34.00 ₫"},{"v":34,"d":"34.00 ₫"},{"$f":"Nhà_ở[[#This Row],[Chi phí theo kế hoạch]]-Nhà_ở[[#This Row],[Chi phí Thực tế]]","v":{"v":0,"d":"0.00 ₫"}},null,"Nhà hát",null,null,{"$f":"Giải_trí[[#This Row],[Chi phí theo kế hoạch]]-Giải_trí[[#This Row],[Chi phí Thực tế]]","v":{"v":0,"d":"0.00 ₫"}}]
[null,"Loại bỏ rác thải",{"v":10,"d":"10.00 ₫"},{"v":10,"d":"10.00 ₫"},{"$f":"Nhà_ở[[#This Row],[Chi phí theo kế hoạch]]-Nhà_ở[[#This Row],[Chi phí Thực tế]]","v":{"v":0,"d":"0.00 ₫"}},null,"Khác",null,null,{"$f":"Giải_trí[[#This Row],[Chi phí theo kế hoạch]]-Giải_trí[[#This Row],[Chi phí Thực tế]]","v":{"v":0,"d":"0.00 ₫"}}]
[null,"Bảo trì hoặc sửa chữa",{"v":23,"d":"23.00 ₫"},{"v":0,"d":"0.00 ₫"},{"$f":"Nhà_ở[[#This Row],[Chi phí theo kế hoạch]]-Nhà_ở[[#This Row],[Chi phí Thực tế]]","v":{"v":23,"d":"23.00 ₫"}},null,"Khác",null,null,{"$f":"Giải_trí[[#This Row],[Chi phí theo kế hoạch]]-Giải_trí[[#This Row],[Chi phí Thực tế]]","v":{"v":0,"d":"0.00 ₫"}}]
[null,"Nhu yếu phẩm",{"v":0,"d":"0.00 ₫"},{"v":0,"d":"0.00 ₫"},{"$f":"Nhà_ở[[#This Row],[Chi phí theo kế hoạch]]-Nhà_ở[[#This Row],[Chi phí Thực tế]]","v":{"v":0,"d":"0.00 ₫"}},null,"Khác",null,null,{"$f":"Giải_trí[[#This Row],[Chi phí theo kế hoạch]]-Giải_trí[[#This Row],[Chi phí Thực tế]]","v":{"v":0,"d":"0.00 ₫"}}]
[null,"Khác",{"v":0,"d":"0.00 ₫"},{"v":0,"d":"0.00 ₫"},{"$f":"Nhà_ở[[#This Row],[Chi phí theo kế hoạch]]-Nhà_ở[[#This Row],[Chi phí Thực tế]]","v":{"v":0,"d":"0.00 ₫"}},null,"Tổng phụ",null,null,{"$f":"SUBTOTAL(109,Giải_trí[Chênh lệch])","v":{"v":0,"d":"0.00 ₫"}}]
[null,"Tổng phụ",null,null,{"$f":"SUBTOTAL(109,Nhà_ở[Chênh lệch])","v":{"v":-41,"d":"-41.00 ₫"}}]
[{"$nulls":6},"KHOẢN VAY","Chi phí Theo kế hoạch","Chi phí Thực tế","Chênh lệch"]
["Nhập chi tiết vào bảng Phương tiện đi lại bắt đầu ở ô bên phải và vào bảng Khoản vay bắt đầu ở ô G24. Hướng dẫn tiếp theo nằm trong ô A35.","PHƯƠNG TIỆN ĐI LẠI","Chi phí Theo kế hoạch","Chi phí Thực tế","Chênh lệch",null,"Cá nhân",null,null,{"$f":"Khoản_vay[[#This Row],[Chi phí Theo kế hoạch]]-Khoản_vay[[#This Row],[Chi phí Thực tế]]","v":{"v":0,"d":"0.00 ₫"}}]
[null,"Thanh toán phương tiện đi lại",null,null,{"$f":"Phương_tiện_đi_lại[[#This Row],[Chi phí Theo kế hoạch]]-Phương_tiện_đi_lại[[#This Row],[Chi phí Thực tế]]","v":{"v":0,"d":"0.00 ₫"}},null,"Học viên",null,null,{"$f":"Khoản_vay[[#This Row],[Chi phí Theo kế hoạch]]-Khoản_vay[[#This Row],[Chi phí Thực tế]]","v":{"v":0,"d":"0.00 ₫"}}]
[null,"Tiền đi xe buýt/taxi",null,null,{"$f":"Phương_tiện_đi_lại[[#This Row],[Chi phí Theo kế hoạch]]-Phương_tiện_đi_lại[[#This Row],[Chi phí Thực tế]]","v":{"v":0,"d":"0.00 ₫"}},null,"Thẻ tín dụng",null,null,{"$f":"Khoản_vay[[#This Row],[Chi phí Theo kế hoạch]]-Khoản_vay[[#This Row],[Chi phí Thực tế]]","v":{"v":0,"d":"0.00 ₫"}}]
[null,"Bảo hiểm",null,null,{"$f":"Phương_tiện_đi_lại[[#This Row],[Chi phí Theo kế hoạch]]-Phương_tiện_đi_lại[[#This Row],[Chi phí Thực tế]]","v":{"v":0,"d":"0.00 ₫"}},null,"Thẻ tín dụng",null,null,{"$f":"Khoản_vay[[#This Row],[Chi phí Theo kế hoạch]]-Khoản_vay[[#This Row],[Chi phí Thực tế]]","v":{"v":0,"d":"0.00 ₫"}}]
[null,"Cấp phép",null,null,{"$f":"Phương_tiện_đi_lại[[#This Row],[Chi phí Theo kế hoạch]]-Phương_tiện_đi_lại[[#This Row],[Chi phí Thực tế]]","v":{"v":0,"d":"0.00 ₫"}},null,"Thẻ tín dụng",null,null,{"$f":"Khoản_vay[[#This Row],[Chi phí Theo kế hoạch]]-Khoản_vay[[#This Row],[Chi phí Thực tế]]","v":{"v":0,"d":"0.00 ₫"}}]
[null,"Nhiên liệu",null,null,{"$f":"Phương_tiện_đi_lại[[#This Row],[Chi phí Theo kế hoạch]]-Phương_tiện_đi_lại[[#This Row],[Chi phí Thực tế]]","v":{"v":0,"d":"0.00 ₫"}},null,"Khác",null,null,{"$f":"Khoản_vay[[#This Row],[Chi phí Theo kế hoạch]]-Khoản_vay[[#This Row],[Chi phí Thực tế]]","v":{"v":0,"d":"0.00 ₫"}}]
[null,"Bảo trì",null,null,{"$f":"Phương_tiện_đi_lại[[#This Row],[Chi phí Theo kế hoạch]]-Phương_tiện_đi_lại[[#This Row],[Chi phí Thực tế]]","v":{"v":0,"d":"0.00 ₫"}},null,"Tổng phụ",null,null,{"$f":"SUBTOTAL(109,Khoản_vay[Chênh lệch])","v":{"v":0,"d":"0.00 ₫"}}]
[null,"Khác",null,null,{"$f":"Phương_tiện_đi_lại[[#This Row],[Chi phí Theo kế hoạch]]-Phương_tiện_đi_lại[[#This Row],[Chi phí Thực tế]]","v":{"v":0,"d":"0.00 ₫"}}]
[null,"Tổng phụ",null,null,{"$f":"SUBTOTAL(109,Phương_tiện_đi_lại[Chênh lệch])","v":{"v":0,"d":"0.00 ₫"}},null,"THUẾ","Chi phí Theo kế hoạch","Chi phí Thực tế","Chênh lệch"]
[{"$nulls":6},"Liên bang",null,null,{"$f":"Thuế[[#This Row],[Chi phí Theo kế hoạch]]-Thuế[[#This Row],[Chi phí Thực tế]]","v":{"v":0,"d":"0.00 ₫"}}]
["Nhập chi tiết vào bảng Bảo hiểm bắt đầu ở ô bên phải và vào bảng Thuế bắt đầu ở ô G33. Hướng dẫn tiếp theo nằm trong ô A42.","BẢO HIỂM","Chi phí Theo kế hoạch","Chi phí Thực tế","Chênh lệch",null,"Tiểu bang",null,null,{"$f":"Thuế[[#This Row],[Chi phí Theo kế hoạch]]-Thuế[[#This Row],[Chi phí Thực tế]]","v":{"v":0,"d":"0.00 ₫"}}]
[null,"Nhà ở",null,null,{"$f":"Bảo_hiểm[[#This Row],[Chi phí Theo kế hoạch]]-Bảo_hiểm[[#This Row],[Chi phí Thực tế]]","v":{"v":0,"d":"0.00 ₫"}},null,"Địa phương",null,null,{"$f":"Thuế[[#This Row],[Chi phí Theo kế hoạch]]-Thuế[[#This Row],[Chi phí Thực tế]]","v":{"v":0,"d":"0.00 ₫"}}]
[null,"Sức khỏe",null,null,{"$f":"Bảo_hiểm[[#This Row],[Chi phí Theo kế hoạch]]-Bảo_hiểm[[#This Row],[Chi phí Thực tế]]","v":{"v":0,"d":"0.00 ₫"}},null,"Khác",null,null,{"$f":"Thuế[[#This Row],[Chi phí Theo kế hoạch]]-Thuế[[#This Row],[Chi phí Thực tế]]","v":{"v":0,"d":"0.00 ₫"}}]
[null,"Đời sống",null,null,{"$f":"Bảo_hiểm[[#This Row],[Chi phí Theo kế hoạch]]-Bảo_hiểm[[#This Row],[Chi phí Thực tế]]","v":{"v":0,"d":"0.00 ₫"}},null,"Tổng phụ",null,null,{"$f":"SUBTOTAL(109,Thuế[Chênh lệch])","v":{"v":0,"d":"0.00 ₫"}}]
[null,"Khác",null,null,{"$f":"Bảo_hiểm[[#This Row],[Chi phí Theo kế hoạch]]-Bảo_hiểm[[#This Row],[Chi phí Thực tế]]","v":{"v":0,"d":"0.00 ₫"}}]
[null,"Tổng phụ",null,null,{"$f":"SUBTOTAL(109,Bảo_hiểm[Chênh lệch])","v":{"v":0,"d":"0.00 ₫"}},null,"TIẾT KIỆM HOẶC ĐẦU TƯ","Chi phí Theo kế hoạch","Chi phí Thực tế","Chênh lệch"]
[{"$nulls":6},"Tài khoản hưu trí",null,null,{"$f":"Tiết_kiệm[[#This Row],[Chi phí Theo kế hoạch]]-Tiết_kiệm[[#This Row],[Chi phí Thực tế]]","v":{"v":0,"d":"0.00 ₫"}}]
["Nhập chi tiết vào bảng Thực phẩm bắt đầu ở ô bên phải và vào bảng Tiết kiệm bắt đầu ở ô G40. Hướng dẫn tiếp theo nằm trong ô A48.","THỰC PHẨM","Chi phí Theo kế hoạch","Chi phí Thực tế","Chênh lệch",null,"Tài khoản đầu tư",null,null,{"$f":"Tiết_kiệm[[#This Row],[Chi phí Theo kế hoạch]]-Tiết_kiệm[[#This Row],[Chi phí Thực tế]]","v":{"v":0,"d":"0.00 ₫"}}]
[null,"Tạp phẩm",null,null,{"$f":"Thực_phẩm[[#This Row],[Chi phí Theo kế hoạch]]-Thực_phẩm[[#This Row],[Chi phí Thực tế]]","v":{"v":0,"d":"0.00 ₫"}},null,"Khác",null,null,{"$f":"Tiết_kiệm[[#This Row],[Chi phí Theo kế hoạch]]-Tiết_kiệm[[#This Row],[Chi phí Thực tế]]","v":{"v":0,"d":"0.00 ₫"}}]
[null,"Ăn ngoài",null,null,{"$f":"Thực_phẩm[[#This Row],[Chi phí Theo kế hoạch]]-Thực_phẩm[[#This Row],[Chi phí Thực tế]]","v":{"v":0,"d":"0.00 ₫"}},null,"Tổng phụ",null,null,{"$f":"SUBTOTAL(109,Tiết_kiệm[Chênh lệch])","v":{"v":0,"d":"0.00 ₫"}}]
[null,"Khác",null,null,{"$f":"Thực_phẩm[[#This Row],[Chi phí Theo kế hoạch]]-Thực_phẩm[[#This Row],[Chi phí Thực tế]]","v":{"v":0,"d":"0.00 ₫"}}]
[null,"Tổng phụ",null,null,{"$f":"SUBTOTAL(109,Thực_phẩm[Chênh lệch])","v":{"v":0,"d":"0.00 ₫"}},null,"QUÀ TẶNG VÀ KHOẢN QUYÊN GÓP","Chi phí Theo kế hoạch","Chi phí Thực tế","Chênh lệch"]
[{"$nulls":6},"Khoản từ thiện 1",null,null,{"$f":"Quà_tặng[[#This Row],[Chi phí Theo kế hoạch]]-Quà_tặng[[#This Row],[Chi phí Thực tế]]","v":{"v":0,"d":"0.00 ₫"}}]
["Nhập chi tiết vào bảng Vật nuôi bắt đầu ở ô bên phải và vào bảng Quà tặng bắt đầu ở ô G46. Hướng dẫn tiếp theo nằm trong ô A56.","VẬT NUÔI","Chi phí Theo kế hoạch","Chi phí Thực tế","Chênh lệch",null,"Khoản từ thiện 2",null,null,{"$f":"Quà_tặng[[#This Row],[Chi phí Theo kế hoạch]]-Quà_tặng[[#This Row],[Chi phí Thực tế]]","v":{"v":0,"d":"0.00 ₫"}}]
[null,"Thực phẩm",null,null,{"$f":"Thú_cưng[[#This Row],[Chi phí Theo kế hoạch]]-Thú_cưng[[#This Row],[Chi phí Thực tế]]","v":{"v":0,"d":"0.00 ₫"}},null,"Khoản từ thiện 3",null,null,{"$f":"Quà_tặng[[#This Row],[Chi phí Theo kế hoạch]]-Quà_tặng[[#This Row],[Chi phí Thực tế]]","v":{"v":0,"d":"0.00 ₫"}}]
[null,"Y tế",null,null,{"$f":"Thú_cưng[[#This Row],[Chi phí Theo kế hoạch]]-Thú_cưng[[#This Row],[Chi phí Thực tế]]","v":{"v":0,"d":"0.00 ₫"}},null,"Tổng phụ",null,null,{"$f":"SUBTOTAL(109,Quà_tặng[Chênh lệch])","v":{"v":0,"d":"0.00 ₫"}}]
[null,"Chăm sóc vật nuôi",null,null,{"$f":"Thú_cưng[[#This Row],[Chi phí Theo kế hoạch]]-Thú_cưng[[#This Row],[Chi phí Thực tế]]","v":{"v":0,"d":"0.00 ₫"}}]
[null,"Đồ chơi",null,null,{"$f":"Thú_cưng[[#This Row],[Chi phí Theo kế hoạch]]-Thú_cưng[[#This Row],[Chi phí Thực tế]]","v":{"v":0,"d":"0.00 ₫"}},null,"PHÁP LÝ","Chi phí Theo kế hoạch","Chi phí Thực tế","Chênh lệch"]
[null,"Khác",null,null,{"$f":"Thú_cưng[[#This Row],[Chi phí Theo kế hoạch]]-Thú_cưng[[#This Row],[Chi phí Thực tế]]","v":{"v":0,"d":"0.00 ₫"}},null,"Luật sư",null,null,{"$f":"Pháp_lý[[#This Row],[Chi phí Theo kế hoạch]]-Pháp_lý[[#This Row],[Chi phí Thực tế]]","v":{"v":0,"d":"0.00 ₫"}}]
[null,"Tổng phụ",null,null,{"$f":"SUBTOTAL(109,Thú_cưng[Chênh lệch])","v":{"v":0,"d":"0.00 ₫"}},null,"Tiền cấp dưỡng",null,null,{"$f":"Pháp_lý[[#This Row],[Chi phí Theo kế hoạch]]-Pháp_lý[[#This Row],[Chi phí Thực tế]]","v":{"v":0,"d":"0.00 ₫"}}]
[{"$nulls":6},"Khoản thanh toán khi giữ vật thế chấp hoặc theo phán quyết",null,null,{"$f":"Pháp_lý[[#This Row],[Chi phí Theo kế hoạch]]-Pháp_lý[[#This Row],[Chi phí Thực tế]]","v":{"v":0,"d":"0.00 ₫"}}]
["Nhập chi tiết vào bảng Chăm sóc cá nhân bắt đầu ở ô bên phải và vào bảng Pháp lý bắt đầu ở ô G52. Hướng dẫn tiếp theo nằm trong ô A59.","CHĂM SÓC CÁ NHÂN","Chi phí Theo kế hoạch","Chi phí Thực tế","Chênh lệch",null,"Khác",null,null,{"$f":"Pháp_lý[[#This Row],[Chi phí Theo kế hoạch]]-Pháp_lý[[#This Row],[Chi phí Thực tế]]","v":{"v":0,"d":"0.00 ₫"}}]
[null,"Y tế",null,null,{"$f":"Chăm_sóc_cá_nhân[[#This Row],[Chi phí Theo kế hoạch]]-Chăm_sóc_cá_nhân[[#This Row],[Chi phí Thực tế]]","v":{"v":0,"d":"₫0.00"}},null,"Tổng phụ",null,null,{"$f":"SUBTOTAL(109,Pháp_lý[Chênh lệch])","v":{"v":0,"d":"0.00 ₫"}}]
[null,"Tóc/móng",null,null,{"$f":"Chăm_sóc_cá_nhân[[#This Row],[Chi phí Theo kế hoạch]]-Chăm_sóc_cá_nhân[[#This Row],[Chi phí Thực tế]]","v":{"v":0,"d":"₫0.00"}}]
["Tổng chi phí dự kiến được tính toán tự động trong ô J59, Tổng chi phí thực tế ở J61 và Tổng chênh lệch ở J63.","Trang phục",null,null,{"$f":"Chăm_sóc_cá_nhân[[#This Row],[Chi phí Theo kế hoạch]]-Chăm_sóc_cá_nhân[[#This Row],[Chi phí Thực tế]]","v":{"v":0,"d":"₫0.00"}},null,"TỔNG CHI PHÍ DỰ KIẾN",null,null,{"$f":"SUBTOTAL(109,Nhà_ở[Chi phí theo kế hoạch],Phương_tiện_đi_lại[Chi phí Theo kế hoạch],Bảo_hiểm[Chi phí Theo kế hoạch],Thực_phẩm[Chi phí Theo kế hoạch],Thú_cưng[Chi phí Theo kế hoạch],Chăm_sóc_cá_nhân[Chi phí Theo kế hoạch],Giải_trí[Chi phí theo kế hoạch],Khoản_vay[Chi phí Theo kế hoạch],Thuế[Chi phí Theo kế hoạch],Tiết_kiệm[Chi phí Theo kế hoạch],Quà_tặng[Chi phí Theo kế hoạch],Pháp_lý[Chi phí Theo kế hoạch])","v":{"v":1195,"d":"1,195.00 ₫"}}]
[null,"Giặt khô",null,null,{"$f":"Chăm_sóc_cá_nhân[[#This Row],[Chi phí Theo kế hoạch]]-Chăm_sóc_cá_nhân[[#This Row],[Chi phí Thực tế]]","v":{"v":0,"d":"₫0.00"}}]
[null,"Phòng tập",null,null,{"$f":"Chăm_sóc_cá_nhân[[#This Row],[Chi phí Theo kế hoạch]]-Chăm_sóc_cá_nhân[[#This Row],[Chi phí Thực tế]]","v":{"v":0,"d":"₫0.00"}},null,"TỔNG CHI PHÍ THỰC TẾ",null,null,{"$f":"SUBTOTAL(109,Nhà_ở[Chi phí Thực tế],Phương_tiện_đi_lại[Chi phí Thực tế],Bảo_hiểm[Chi phí Thực tế],Thực_phẩm[Chi phí Thực tế],Thú_cưng[Chi phí Thực tế],Chăm_sóc_cá_nhân[Chi phí Thực tế],Giải_trí[Chi phí Thực tế],Khoản_vay[Chi phí Thực tế],Thuế[Chi phí Thực tế],Tiết_kiệm[Chi phí Thực tế],Quà_tặng[Chi phí Thực tế],Pháp_lý[Chi phí Thực tế])","v":{"v":1236,"d":"1,236.00 ₫"}}]
[null,"Thuế hoặc phí tổ chức",null,null,{"$f":"Chăm_sóc_cá_nhân[[#This Row],[Chi phí Theo kế hoạch]]-Chăm_sóc_cá_nhân[[#This Row],[Chi phí Thực tế]]","v":{"v":0,"d":"₫0.00"}}]
[null,"Khác",null,null,{"$f":"Chăm_sóc_cá_nhân[[#This Row],[Chi phí Theo kế hoạch]]-Chăm_sóc_cá_nhân[[#This Row],[Chi phí Thực tế]]","v":{"v":0,"d":"₫0.00"}},null,"TỔNG CHÊNH LỆCH",null,null,{"$f":"J59-J61","v":{"v":-41,"d":"-41.00 ₫"}}]
[null,"Tổng phụ",null,null,{"$f":"SUBTOTAL(109,Chăm_sóc_cá_nhân[Chênh lệch])","v":{"v":0,"d":"₫0.00"}}]